[Event "Titled Tuesday Blitz June 20 Early 2023"]
[White "Bacrot, Etienne"]
[Black "Kvaloy, Aksel Bu"]
[WhiteFideId "605506"]
[BlackFideId "1528815"]
[WhiteElo "2672"]
[BlackElo "2318"]
[Result "1-0"]
[Round "7"]
[TimeControl "180+2"]
[Date "2023.06.20"]
[WhiteClock "0:01:21"]
[BlackClock "0:01:56"]
[Board "27"]

1. d4 {[%clk 0:03:00]}  Nf6 {[%clk 0:02:59]} 2. Nf3 {[%clk 0:03:01]}  e6 {[%clk 0:03:00]} 3. Bg5 {[%clk 0:03:01]}  d5 {[%clk 0:02:58]} 4. Nbd2 {[%clk 0:03:01]}  c5 {[%clk 0:02:54]} 5. e3 {[%clk 0:03:01]}  Nc6 {[%clk 0:02:53]} 6. c3 {[%clk 0:03:01]}  Bd6 {[%clk 0:02:52]} 7. Bd3 {[%clk 0:03:01]}  e5 {[%clk 0:02:51]} 8. dxe5 {[%clk 0:03:00]}  Nxe5 {[%clk 0:02:51]} 9. Bb5+ {[%clk 0:02:46]}  Bd7 {[%clk 0:02:38]} 10. Bxd7+ {[%clk 0:02:24]}  Nexd7 {[%clk 0:02:38]} 11. e4 {[%clk 0:02:18]}  dxe4 {[%clk 0:02:29]} 12. Nxe4 {[%clk 0:02:17]}  Qe7 {[%clk 0:02:29]} 13. O-O {[%clk 0:02:16]}  Bc7 {[%clk 0:02:09]} 14. Re1 {[%clk 0:01:56]}  Ne5 {[%clk 0:02:07]} 15. Nxe5 {[%clk 0:01:53]}  Bxe5 {[%clk 0:02:06]} 16. f4 {[%clk 0:01:26]}  Rd8 {[%clk 0:01:56]} 17. Qa4+ {[%clk 0:01:21]} 1-0


[Site "https://www.chess.com"]

[Event "Titled Tuesday Blitz June 20 Early 2023"]
[White "Chigaev, Maksim"]
[Black "Eugene, Floryan"]
[WhiteFideId "4108116"]
[BlackFideId "20694784"]
[WhiteElo "2561"]
[BlackElo "2369"]
[Result "1-0"]
[Round "7"]
[TimeControl "180+2"]
[Date "2023.06.20"]
[WhiteClock "0:00:06"]
[BlackClock "0:00:14"]
[Board "28"]

1. e4 {[%clk 0:03:00]}  c5 {[%clk 0:03:00]} 2. Nf3 {[%clk 0:02:59]}  Nc6 {[%clk 0:03:00]} 3. Bb5 {[%clk 0:02:59]}  g6 {[%clk 0:02:59]} 4. O-O {[%clk 0:02:55]}  Bg7 {[%clk 0:02:58]} 5. Re1 {[%clk 0:02:56]}  e5 {[%clk 0:02:49]} 6. Bxc6 {[%clk 0:02:55]}  dxc6 {[%clk 0:02:48]} 7. d3 {[%clk 0:02:55]}  Qe7 {[%clk 0:02:42]} 8. a4 {[%clk 0:02:54]}  Nf6 {[%clk 0:02:36]} 9. Na3 {[%clk 0:02:49]}  O-O {[%clk 0:02:34]} 10. Nc4 {[%clk 0:02:46]}  Nd7 {[%clk 0:02:33]} 11. a5 {[%clk 0:02:47]}  Rd8 {[%clk 0:02:28]} 12. Bg5 {[%clk 0:02:46]}  f6 {[%clk 0:02:27]} 13. Be3 {[%clk 0:02:46]}  Nf8 {[%clk 0:02:26]} 14. Qb1 {[%clk 0:02:41]}  Be6 {[%clk 0:02:21]} 15. Nfd2 {[%clk 0:02:40]}  Bf7 {[%clk 0:02:17]} 16. c3 {[%clk 0:02:28]}  Ne6 {[%clk 0:02:15]} 17. b4 {[%clk 0:02:28]}  cxb4 {[%clk 0:02:11]} 18. cxb4 {[%clk 0:02:29]}  Bf8 {[%clk 0:01:48]} 19. Ra2 {[%clk 0:02:17]}  Nd4 {[%clk 0:01:38]} 20. Rb2 {[%clk 0:02:16]}  Qd7 {[%clk 0:01:10]} 21. h3 {[%clk 0:02:08]}  Nb5 {[%clk 0:01:09]} 22. Rb3 {[%clk 0:02:05]}  Be6 {[%clk 0:00:58]} 23. Rc1 {[%clk 0:01:50]}  Qf7 {[%clk 0:00:58]} 24. Nf3 {[%clk 0:01:48]}  Rd7 {[%clk 0:00:52]} 25. Rb2 {[%clk 0:01:43]}  Rad8 {[%clk 0:00:51]} 26. Rd2 {[%clk 0:01:38]}  h5 {[%clk 0:00:48]} 27. Ncxe5 {[%clk 0:01:27]}  fxe5 {[%clk 0:00:46]} 28. Nxe5 {[%clk 0:01:28]}  Qg7 {[%clk 0:00:45]} 29. Nxd7 {[%clk 0:01:28]}  Rxd7 {[%clk 0:00:45]} 30. d4 {[%clk 0:01:15]}  Qe7 {[%clk 0:00:34]} 31. Rc5 {[%clk 0:01:04]}  Bg7 {[%clk 0:00:32]} 32. d5 {[%clk 0:00:57]}  Bf7 {[%clk 0:00:30]} 33. Qc1 {[%clk 0:00:52]}  Qxe4 {[%clk 0:00:27]} 34. dxc6 {[%clk 0:00:30]}  Rxd2 {[%clk 0:00:28]} 35. cxb7 {[%clk 0:00:22]}  Qxb7 {[%clk 0:00:26]} 36. Qxd2 {[%clk 0:00:22]}  a6 {[%clk 0:00:27]} 37. Qd8+ {[%clk 0:00:19]}  Kh7 {[%clk 0:00:25]} 38. Qd3 {[%clk 0:00:20]}  Qe7 {[%clk 0:00:22]} 39. Rxh5+ {[%clk 0:00:20]}  Kg8 {[%clk 0:00:21]} 40. Rc5 {[%clk 0:00:19]}  Bf8 {[%clk 0:00:21]} 41. Rc6 {[%clk 0:00:14]}  Qxb4 {[%clk 0:00:20]} 42. Rxg6+ {[%clk 0:00:13]}  Bxg6 {[%clk 0:00:20]} 43. Qxg6+ {[%clk 0:00:14]}  Bg7 {[%clk 0:00:21]} 44. Qe6+ {[%clk 0:00:08]}  Kh8 {[%clk 0:00:21]} 45. g3 {[%clk 0:00:05]}  Qd6 {[%clk 0:00:20]} 46. Qc8+ {[%clk 0:00:05]}  Kh7 {[%clk 0:00:20]} 47. Qf5+ {[%clk 0:00:06]}  Qg6 {[%clk 0:00:21]} 48. Qd5 {[%clk 0:00:06]}  Nc3 {[%clk 0:00:21]} 49. Qb7 {[%clk 0:00:06]}  Ne4 {[%clk 0:00:20]} 50. Kg2 {[%clk 0:00:06]}  Nf6 {[%clk 0:00:20]} 51. Qxa6 {[%clk 0:00:05]}  Qe4+ {[%clk 0:00:19]} 52. Kg1 {[%clk 0:00:06]}  Qb1+ {[%clk 0:00:19]} 53. Qf1 {[%clk 0:00:06]}  Qb5 {[%clk 0:00:14]} 54. Qxb5 {[%clk 0:00:06]} 1-0


[Site "https://www.chess.com"]

[Event "Titled Tuesday Blitz June 20 Early 2023"]
[White "Sadhwani, Raunak"]
[Black "Munkhgal, Gombosuren"]
[WhiteFideId "35093487"]
[BlackFideId "4901266"]
[WhiteElo "2631"]
[BlackElo "2528"]
[Result "1-0"]
[Round "7"]
[TimeControl "180+2"]
[Date "2023.06.20"]
[WhiteClock "0:00:05"]
[BlackClock "0:00:00"]
[Board "29"]

1. d4 {[%clk 0:03:00]}  Nf6 {[%clk 0:02:58]} 2. Nf3 {[%clk 0:02:59]}  g6 {[%clk 0:02:58]} 3. g3 {[%clk 0:02:59]}  Bg7 {[%clk 0:02:59]} 4. Bg2 {[%clk 0:03:00]}  O-O {[%clk 0:03:00]} 5. O-O {[%clk 0:03:01]}  d6 {[%clk 0:03:00]} 6. c4 {[%clk 0:03:01]}  Nc6 {[%clk 0:03:01]} 7. Nc3 {[%clk 0:03:02]}  e5 {[%clk 0:03:01]} 8. d5 {[%clk 0:03:02]}  Nb8 {[%clk 0:02:58]} 9. e4 {[%clk 0:03:03]}  a5 {[%clk 0:02:59]} 10. Ne1 {[%clk 0:03:02]}  Na6 {[%clk 0:02:59]} 11. Nd3 {[%clk 0:03:03]}  b6 {[%clk 0:02:59]} 12. Be3 {[%clk 0:03:03]}  Nc5 {[%clk 0:02:59]} 13. h3 {[%clk 0:02:55]}  Nfd7 {[%clk 0:02:56]} 14. Nxc5 {[%clk 0:02:50]}  Nxc5 {[%clk 0:02:57]} 15. Kh2 {[%clk 0:02:36]}  f5 {[%clk 0:02:56]} 16. exf5 {[%clk 0:02:37]}  gxf5 {[%clk 0:02:55]} 17. f4 {[%clk 0:02:37]}  e4 {[%clk 0:02:54]} 18. Bd4 {[%clk 0:02:37]}  Qe7 {[%clk 0:02:53]} 19. Nb5 {[%clk 0:02:35]}  Ba6 {[%clk 0:02:51]} 20. Bxg7 {[%clk 0:02:25]}  Qxg7 {[%clk 0:02:51]} 21. Qe2 {[%clk 0:02:23]}  Kh8 {[%clk 0:02:48]} 22. b3 {[%clk 0:02:18]}  Rg8 {[%clk 0:02:46]} 23. Qe3 {[%clk 0:02:18]}  Bxb5 {[%clk 0:02:36]} 24. cxb5 {[%clk 0:02:19]}  Qf6 {[%clk 0:02:32]} 25. Rad1 {[%clk 0:02:06]}  Rg7 {[%clk 0:02:29]} 26. Rg1 {[%clk 0:02:07]}  Rag8 {[%clk 0:02:27]} 27. Bf1 {[%clk 0:02:07]}  h5 {[%clk 0:02:23]} 28. h4 {[%clk 0:02:04]}  Kh7 {[%clk 0:02:16]} 29. Rg2 {[%clk 0:01:57]}  Kh6 {[%clk 0:02:04]} 30. a3 {[%clk 0:01:57]}  Nd7 {[%clk 0:01:49]} 31. Rc1 {[%clk 0:01:55]}  Nf8 {[%clk 0:01:49]} 32. Qc3 {[%clk 0:01:26]}  Qd8 {[%clk 0:01:49]} 33. Rg1 {[%clk 0:01:24]}  Ng6 {[%clk 0:01:43]} 34. Bh3 {[%clk 0:01:24]}  Rf8 {[%clk 0:01:24]} 35. Qd4 {[%clk 0:01:11]}  Qd7 {[%clk 0:01:16]} 36. a4 {[%clk 0:01:11]}  Rfg8 {[%clk 0:01:10]} 37. Qf6 {[%clk 0:01:02]}  Rf8 {[%clk 0:01:07]} 38. Qg5+ {[%clk 0:00:56]}  Kh7 {[%clk 0:01:07]} 39. Qxh5+ {[%clk 0:00:57]}  Kg8 {[%clk 0:01:08]} 40. Qe2 {[%clk 0:00:58]}  Qf7 {[%clk 0:01:03]} 41. h5 {[%clk 0:00:54]}  Nh8 {[%clk 0:01:02]} 42. Rc4 {[%clk 0:00:44]}  Qxd5 {[%clk 0:00:59]} 43. Rgc1 {[%clk 0:00:45]}  Rff7 {[%clk 0:00:55]} 44. h6 {[%clk 0:00:20]}  Rh7 {[%clk 0:00:44]} 45. Qh5 {[%clk 0:00:20]}  Qd2+ {[%clk 0:00:45]} 46. Bg2 {[%clk 0:00:20]}  Rxh6 {[%clk 0:00:31]} 47. Qxh6 {[%clk 0:00:14]}  Rh7 {[%clk 0:00:31]} 48. Qxh7+ {[%clk 0:00:14]}  Kxh7 {[%clk 0:00:32]} 49. Rxc7+ {[%clk 0:00:15]}  Kh6 {[%clk 0:00:31]} 50. R1c2 {[%clk 0:00:12]}  Qd4 {[%clk 0:00:19]} 51. R2c6 {[%clk 0:00:05]}  Kg6 {[%clk 0:00:13]} 52. Rb7 {[%clk 0:00:03]}  e3 {[%clk 0:00:12]} 53. Re7 {[%clk 0:00:02]}  Kf6 {[%clk 0:00:09]} 54. Rcc7 {[%clk 0:00:01]}  Qd2 {[%clk 0:00:08]} 55. Re8 {[%clk 0:00:02]}  e2 {[%clk 0:00:03]} 56. Rce7 {[%clk 0:00:02]}  e1=Q {[%clk 0:00:02]} 57. Rxe1 {[%clk 0:00:02]}  Nf7 {[%clk 0:00:03]} 58. R1e6+ {[%clk 0:00:03]}  Kg7 {[%clk 0:00:03]} 59. R8e7 {[%clk 0:00:03]}  Kf8 {[%clk 0:00:03]} 60. Re8+ {[%clk 0:00:03]}  Kg7 {[%clk 0:00:04]} 61. R8e7 {[%clk 0:00:03]}  Kf8 {[%clk 0:00:04]} 62. Rb7 {[%clk 0:00:04]}  Nh6 {[%clk 0:00:04]} 63. Rxh6 {[%clk 0:00:04]}  Kg8 {[%clk 0:00:04]} 64. Rg6+ {[%clk 0:00:04]}  Kf8 {[%clk 0:00:04]} 65. Rf6+ {[%clk 0:00:05]}  Ke8 {[%clk 0:00:04]} 66. Rxf5 {[%clk 0:00:05]}  Qc2 {[%clk 0:00:00]} 67. Rh5 {[%clk 0:00:05]} 1-0


[Site "https://www.chess.com"]

[Event "Titled Tuesday Blitz June 20 Early 2023"]
[White "Durarbayli, Vasif"]
[Black "Ning, Kaiyu"]
[WhiteFideId "13402935"]
[BlackFideId "8614750"]
[WhiteElo "2551"]
[BlackElo "2287"]
[Result "1-0"]
[Round "7"]
[TimeControl "180+2"]
[Date "2023.06.20"]
[WhiteClock "0:01:22"]
[BlackClock "0:01:01"]
[Board "31"]

1. e4 {[%clk 0:03:00]}  e5 {[%clk 0:02:55]} 2. Nc3 {[%clk 0:03:00]}  Nf6 {[%clk 0:02:54]} 3. f4 {[%clk 0:02:59]}  d5 {[%clk 0:02:54]} 4. fxe5 {[%clk 0:02:50]}  Nxe4 {[%clk 0:02:53]} 5. Qf3 {[%clk 0:02:50]}  Nc6 {[%clk 0:02:50]} 6. Bb5 {[%clk 0:02:47]}  Nxc3 {[%clk 0:02:34]} 7. bxc3 {[%clk 0:02:42]}  Be6 {[%clk 0:02:34]} 8. d4 {[%clk 0:02:41]}  Qd7 {[%clk 0:02:29]} 9. Bg5 {[%clk 0:02:34]}  a6 {[%clk 0:02:26]} 10. Bd3 {[%clk 0:02:30]}  Be7 {[%clk 0:02:26]} 11. Bxe7 {[%clk 0:02:26]}  Nxe7 {[%clk 0:02:23]} 12. Ne2 {[%clk 0:02:24]}  c5 {[%clk 0:02:13]} 13. dxc5 {[%clk 0:02:24]}  Qc7 {[%clk 0:02:13]} 14. Qg3 {[%clk 0:02:18]}  Ng6 {[%clk 0:02:08]} 15. Bxg6 {[%clk 0:02:16]}  hxg6 {[%clk 0:02:08]} 16. Nd4 {[%clk 0:02:16]}  Rh5 {[%clk 0:01:50]} 17. Nxe6 {[%clk 0:01:52]}  Rxe5+ {[%clk 0:01:10]} 18. Kd2 {[%clk 0:01:44]}  fxe6 {[%clk 0:01:10]} 19. Rhe1 {[%clk 0:01:24]}  Rxe1 {[%clk 0:01:03]} 20. Qxc7 {[%clk 0:01:25]}  Rxa1 {[%clk 0:01:04]} 21. Qxb7 {[%clk 0:01:24]}  Rd8 {[%clk 0:01:01]} 22. c6 {[%clk 0:01:22]} 1-0


[Site "https://www.chess.com"]

[Event "Titled Tuesday Blitz June 20 Early 2023"]
[White "Arabidze, Meri"]
[Black "Sjugirov, Sanan"]
[WhiteFideId "13604040"]
[BlackFideId "4189302"]
[WhiteElo "2405"]
[BlackElo "2569"]
[Result "0-1"]
[Round "7"]
[TimeControl "180+2"]
[Date "2023.06.20"]
[WhiteClock "0:00:00"]
[BlackClock "0:00:59"]
[Board "32"]

1. Nf3 {[%clk 0:03:00]}  g6 {[%clk 0:03:00]} 2. g3 {[%clk 0:03:01]}  Bg7 {[%clk 0:03:00]} 3. Bg2 {[%clk 0:03:02]}  e5 {[%clk 0:03:00]} 4. O-O {[%clk 0:03:01]}  d5 {[%clk 0:02:58]} 5. d3 {[%clk 0:03:01]}  Ne7 {[%clk 0:02:58]} 6. e4 {[%clk 0:03:01]}  O-O {[%clk 0:02:56]} 7. Re1 {[%clk 0:02:56]}  Nbc6 {[%clk 0:02:55]} 8. Bg5 {[%clk 0:02:43]}  f6 {[%clk 0:02:52]} 9. Bd2 {[%clk 0:02:40]}  Be6 {[%clk 0:02:51]} 10. exd5 {[%clk 0:02:37]}  Bxd5 {[%clk 0:02:50]} 11. Nc3 {[%clk 0:02:38]}  Bf7 {[%clk 0:02:49]} 12. Ne4 {[%clk 0:02:37]}  b6 {[%clk 0:02:43]} 13. Qc1 {[%clk 0:02:33]}  Re8 {[%clk 0:02:41]} 14. h4 {[%clk 0:02:10]}  Qd7 {[%clk 0:02:35]} 15. Kh2 {[%clk 0:02:09]}  Rad8 {[%clk 0:02:31]} 16. Rh1 {[%clk 0:02:03]}  Nf5 {[%clk 0:02:30]} 17. h5 {[%clk 0:02:00]}  g5 {[%clk 0:02:18]} 18. Kg1 {[%clk 0:01:46]}  h6 {[%clk 0:02:17]} 19. Bh3 {[%clk 0:01:34]}  Be6 {[%clk 0:02:16]} 20. Qd1 {[%clk 0:01:29]}  Nfd4 {[%clk 0:02:11]} 21. Bxe6+ {[%clk 0:01:28]}  Qxe6 {[%clk 0:02:12]} 22. Nxd4 {[%clk 0:01:25]}  Nxd4 {[%clk 0:02:13]} 23. g4 {[%clk 0:01:19]}  f5 {[%clk 0:02:06]} 24. gxf5 {[%clk 0:01:18]}  Qxf5 {[%clk 0:02:07]} 25. Kg2 {[%clk 0:01:11]}  Rf8 {[%clk 0:02:07]} 26. Rh3 {[%clk 0:01:07]}  Rd7 {[%clk 0:01:50]} 27. Be3 {[%clk 0:01:05]}  Ne6 {[%clk 0:01:50]} 28. Rg3 {[%clk 0:00:50]}  Nf4+ {[%clk 0:01:42]} 29. Kh2 {[%clk 0:00:43]}  Rdf7 {[%clk 0:01:35]} 30. Qf3 {[%clk 0:00:39]}  Qe6 {[%clk 0:01:27]} 31. Qd1 {[%clk 0:00:23]}  Qc6 {[%clk 0:01:17]} 32. a4 {[%clk 0:00:21]}  a5 {[%clk 0:01:10]} 33. b3 {[%clk 0:00:21]}  Nd5 {[%clk 0:01:07]} 34. Bd2 {[%clk 0:00:18]}  Nf6 {[%clk 0:01:04]} 35. Nxf6+ {[%clk 0:00:14]}  Rxf6 {[%clk 0:01:05]} 36. Be3 {[%clk 0:00:15]}  Rf3 {[%clk 0:01:03]} 37. Qg1 {[%clk 0:00:13]}  e4 {[%clk 0:01:01]} 38. dxe4 {[%clk 0:00:06]}  Be5 {[%clk 0:00:59]} 39. Bxg5 {[%clk 0:00:02]}  hxg5 {[%clk 0:00:59]} 40. Kh3 {[%clk 0:00:02]}  Bxg3 {[%clk 0:00:58]} 41. fxg3 {[%clk 0:00:00]}  Qxe4 {[%clk 0:00:59]} 0-1


[Site "https://www.chess.com"]

[Event "Titled Tuesday Blitz June 20 Early 2023"]
[White "Ashraf, Artin"]
[Black "Ibarra Jerez, Jose Carlos"]
[WhiteFideId "22514805"]
[BlackFideId "2226332"]
[WhiteElo "2224"]
[BlackElo "2631"]
[Result "0-1"]
[Round "7"]
[TimeControl "180+2"]
[Date "2023.06.20"]
[WhiteClock "0:00:00"]
[BlackClock "0:00:42"]
[Board "34"]

1. c4 {[%clk 0:02:58]}  e5 {[%clk 0:02:57]} 2. Nc3 {[%clk 0:02:57]}  Nf6 {[%clk 0:02:57]} 3. g3 {[%clk 0:02:52]}  c6 {[%clk 0:02:50]} 4. d4 {[%clk 0:02:35]}  exd4 {[%clk 0:02:49]} 5. Qxd4 {[%clk 0:02:34]}  Na6 {[%clk 0:02:49]} 6. Bg2 {[%clk 0:02:29]}  Bc5 {[%clk 0:02:49]} 7. Qe5+ {[%clk 0:02:11]}  Be7 {[%clk 0:02:49]} 8. Nh3 {[%clk 0:01:50]}  O-O {[%clk 0:02:45]} 9. O-O {[%clk 0:01:48]}  Re8 {[%clk 0:02:43]} 10. Qd4 {[%clk 0:01:21]}  Nc5 {[%clk 0:02:39]} 11. Nf4 {[%clk 0:01:19]}  a5 {[%clk 0:02:35]} 12. b3 {[%clk 0:01:17]}  d6 {[%clk 0:02:32]} 13. Ba3 {[%clk 0:01:06]}  Qc7 {[%clk 0:02:17]} 14. Rad1 {[%clk 0:01:02]}  Bf8 {[%clk 0:02:16]} 15. Bb2 {[%clk 0:00:58]}  Qb6 {[%clk 0:02:07]} 16. Ba1 {[%clk 0:00:12]}  a4 {[%clk 0:02:05]} 17. Rb1 {[%clk 0:00:06]}  axb3 {[%clk 0:02:03]} 18. axb3 {[%clk 0:00:06]}  Qb4 {[%clk 0:01:49]} 19. Nd3 {[%clk 0:00:03]}  Nxd3 {[%clk 0:01:47]} 20. Qxd3 {[%clk 0:00:04]}  Bg4 {[%clk 0:01:43]} 21. h3 {[%clk 0:00:04]}  Bh5 {[%clk 0:01:41]} 22. f4 {[%clk 0:00:04]}  Qc5+ {[%clk 0:01:35]} 23. Kh2 {[%clk 0:00:04]}  Re3 {[%clk 0:01:36]} 24. Qd2 {[%clk 0:00:04]}  Rae8 {[%clk 0:01:32]} 25. Rbe1 {[%clk 0:00:03]}  Qf5 {[%clk 0:01:21]} 26. Qd4 {[%clk 0:00:02]}  Qg6 {[%clk 0:01:14]} 27. g4 {[%clk 0:00:01]}  Bxg4 {[%clk 0:00:43]} 28. hxg4 {[%clk 0:00:02]}  Nxg4+ {[%clk 0:00:43]} 29. Kg1 {[%clk 0:00:02]}  Qh5 {[%clk 0:00:44]} 30. Rf3 {[%clk 0:00:02]}  Rxf3 {[%clk 0:00:41]} 31. Bxf3 {[%clk 0:00:01]}  Qh2+ {[%clk 0:00:41]} 32. Kf1 {[%clk 0:00:00]}  Ne3+ {[%clk 0:00:42]} 0-1


[Site "https://www.chess.com"]

[Event "Titled Tuesday Blitz June 20 Early 2023"]
[White "Galchenko, Matvey"]
[Black "Martic, Ivan"]
[WhiteFideId "24175480"]
[BlackFideId "929301"]
[WhiteElo "2423"]
[BlackElo "2346"]
[Result "1-0"]
[Round "7"]
[TimeControl "180+2"]
[Date "2023.06.20"]
[WhiteClock "0:01:09"]
[BlackClock "0:00:14"]
[Board "35"]

1. f4 {[%clk 0:02:50]}  d5 {[%clk 0:01:25]} 2. Nf3 {[%clk 0:02:49]}  g6 {[%clk 0:01:24]} 3. g3 {[%clk 0:02:50]}  Bg7 {[%clk 0:01:25]} 4. Bg2 {[%clk 0:02:50]}  c5 {[%clk 0:01:22]} 5. O-O {[%clk 0:02:50]}  Nc6 {[%clk 0:01:23]} 6. d3 {[%clk 0:02:51]}  Nf6 {[%clk 0:01:23]} 7. Nc3 {[%clk 0:02:51]}  d4 {[%clk 0:01:23]} 8. Na4 {[%clk 0:02:51]}  b6 {[%clk 0:01:15]} 9. Ne5 {[%clk 0:02:47]}  Nxe5 {[%clk 0:01:15]} 10. fxe5 {[%clk 0:02:46]}  Nd5 {[%clk 0:01:08]} 11. c4 {[%clk 0:02:47]}  dxc3 {[%clk 0:01:06]} 12. Nxc3 {[%clk 0:02:40]}  Be6 {[%clk 0:00:57]} 13. Qa4+ {[%clk 0:02:38]}  Kf8 {[%clk 0:00:57]} 14. Nxd5 {[%clk 0:02:09]}  Bxd5 {[%clk 0:00:58]} 15. Qf4 {[%clk 0:02:10]}  Be6 {[%clk 0:00:43]} 16. Bxa8 {[%clk 0:01:47]}  Qxa8 {[%clk 0:00:44]} 17. Bd2 {[%clk 0:01:48]}  h5 {[%clk 0:00:42]} 18. Bc3 {[%clk 0:01:41]}  h4 {[%clk 0:00:41]} 19. g4 {[%clk 0:01:39]}  h3 {[%clk 0:00:35]} 20. Rf3 {[%clk 0:01:37]}  Rh4 {[%clk 0:00:27]} 21. Rg3 {[%clk 0:01:33]}  Bh6 {[%clk 0:00:26]} 22. Qf3 {[%clk 0:01:29]}  Bd5 {[%clk 0:00:21]} 23. e4 {[%clk 0:01:13]}  Be6 {[%clk 0:00:18]} 24. Rf1 {[%clk 0:01:12]}  Qd8 {[%clk 0:00:16]} 25. Rxh3 {[%clk 0:01:09]}  Bxg4 {[%clk 0:00:14]} 26. Qxf7# {[%clk 0:01:09]} 1-0


[Site "https://www.chess.com"]

[Event "Titled Tuesday Blitz June 20 Early 2023"]
[White "Souleidis, Georgios"]
[Black "Xu, Yi"]
[WhiteFideId "4206827"]
[BlackFideId "8605564"]
[WhiteElo "2401"]
[BlackElo "2460"]
[Result "1-0"]
[Round "7"]
[TimeControl "180+2"]
[Date "2023.06.20"]
[WhiteClock "0:00:03"]
[BlackClock "0:00:00"]
[Board "36"]

1. e4 {[%clk 0:03:00]}  c5 {[%clk 0:02:53]} 2. Be2 {[%clk 0:03:00]}  Nc6 {[%clk 0:02:49]} 3. d3 {[%clk 0:03:00]}  Nf6 {[%clk 0:02:42]} 4. f4 {[%clk 0:03:00]}  d5 {[%clk 0:02:35]} 5. e5 {[%clk 0:03:00]}  Nd7 {[%clk 0:02:35]} 6. Nf3 {[%clk 0:03:01]}  e6 {[%clk 0:02:35]} 7. O-O {[%clk 0:03:02]}  Be7 {[%clk 0:02:34]} 8. c4 {[%clk 0:03:02]}  Nb6 {[%clk 0:02:24]} 9. Nc3 {[%clk 0:03:02]}  O-O {[%clk 0:02:24]} 10. a4 {[%clk 0:03:02]}  Na5 {[%clk 0:02:14]} 11. b3 {[%clk 0:02:45]}  dxc4 {[%clk 0:02:02]} 12. bxc4 {[%clk 0:02:36]}  Bd7 {[%clk 0:01:55]} 13. Qc2 {[%clk 0:02:30]}  Bc6 {[%clk 0:01:20]} 14. Bd2 {[%clk 0:02:21]}  Qd7 {[%clk 0:01:01]} 15. Nb5 {[%clk 0:02:09]}  Bxf3 {[%clk 0:00:57]} 16. Bxf3 {[%clk 0:02:01]}  Nc6 {[%clk 0:00:57]} 17. a5 {[%clk 0:01:51]}  Nc8 {[%clk 0:00:58]} 18. a6 {[%clk 0:01:42]}  bxa6 {[%clk 0:00:53]} 19. Rxa6 {[%clk 0:01:39]}  Nb6 {[%clk 0:00:54]} 20. Rfa1 {[%clk 0:01:12]}  Nd4 {[%clk 0:00:41]} 21. Nxd4 {[%clk 0:01:03]}  Qxd4+ {[%clk 0:00:42]} 22. Kh1 {[%clk 0:01:04]}  Rad8 {[%clk 0:00:42]} 23. Be4 {[%clk 0:00:47]}  Nxc4 {[%clk 0:00:41]} 24. Bc3 {[%clk 0:00:08]}  Ne3 {[%clk 0:00:34]} 25. Qd2 {[%clk 0:00:07]}  Nc4 {[%clk 0:00:27]} 26. Qc2 {[%clk 0:00:03]}  Ne3 {[%clk 0:00:11]} 27. Qc1 {[%clk 0:00:04]}  Qd7 {[%clk 0:00:01]} 28. Qxe3 {[%clk 0:00:04]}  Rb8 {[%clk 0:00:01]} 29. Rxa7 {[%clk 0:00:04]}  Qd8 {[%clk 0:00:00]} 30. h3 {[%clk 0:00:03]} 1-0


[Site "https://www.chess.com"]

[Event "Titled Tuesday Blitz June 20 Early 2023"]
[White "Sadykov, Ramil"]
[Black "Ilamparthi A R"]
[WhiteFideId "24113590"]
[BlackFideId "45015775"]
[WhiteElo "2245"]
[BlackElo "2348"]
[Result "0-1"]
[Round "7"]
[TimeControl "180+2"]
[Date "2023.06.20"]
[WhiteClock "0:00:00"]
[BlackClock "0:00:28"]
[Board "37"]

1. e4 {[%clk 0:02:58]}  c5 {[%clk 0:02:58]} 2. Nf3 {[%clk 0:02:57]}  d6 {[%clk 0:02:58]} 3. Bb5+ {[%clk 0:02:57]}  Bd7 {[%clk 0:02:58]} 4. Bxd7+ {[%clk 0:02:57]}  Qxd7 {[%clk 0:02:58]} 5. c4 {[%clk 0:02:57]}  e5 {[%clk 0:02:57]} 6. Nc3 {[%clk 0:02:53]}  Nc6 {[%clk 0:02:57]} 7. d3 {[%clk 0:02:53]}  Be7 {[%clk 0:02:57]} 8. O-O {[%clk 0:02:50]}  Bd8 {[%clk 0:02:57]} 9. Ne1 {[%clk 0:02:43]}  Nge7 {[%clk 0:02:56]} 10. Nc2 {[%clk 0:02:40]}  O-O {[%clk 0:02:56]} 11. Ne3 {[%clk 0:02:39]}  f5 {[%clk 0:02:50]} 12. exf5 {[%clk 0:02:35]}  Nxf5 {[%clk 0:02:51]} 13. Qg4 {[%clk 0:02:17]}  Ncd4 {[%clk 0:02:47]} 14. Nxf5 {[%clk 0:02:13]}  Rxf5 {[%clk 0:02:43]} 15. Be3 {[%clk 0:02:11]}  h5 {[%clk 0:02:37]} 16. Qe4 {[%clk 0:01:57]}  Bg5 {[%clk 0:02:19]} 17. Nd5 {[%clk 0:01:39]}  Raf8 {[%clk 0:02:06]} 18. Bxd4 {[%clk 0:01:19]}  cxd4 {[%clk 0:01:57]} 19. h4 {[%clk 0:01:19]}  Bd8 {[%clk 0:01:43]} 20. g3 {[%clk 0:01:17]}  g5 {[%clk 0:01:39]} 21. hxg5 {[%clk 0:01:07]}  Rxg5 {[%clk 0:01:37]} 22. Kg2 {[%clk 0:00:55]}  Rg4 {[%clk 0:01:14]} 23. Qe2 {[%clk 0:00:55]}  h4 {[%clk 0:01:13]} 24. Rh1 {[%clk 0:00:52]}  Qg7 {[%clk 0:01:01]} 25. Rh3 {[%clk 0:00:50]}  hxg3 {[%clk 0:00:47]} 26. Rxg3 {[%clk 0:00:45]}  Rxg3+ {[%clk 0:00:39]} 27. fxg3 {[%clk 0:00:46]}  Bh4 {[%clk 0:00:39]} 28. g4 {[%clk 0:00:15]}  Rf2+ {[%clk 0:00:36]} 29. Qxf2 {[%clk 0:00:16]}  Bxf2 {[%clk 0:00:34]} 30. Kxf2 {[%clk 0:00:17]}  Qh6 {[%clk 0:00:31]} 31. Kf3 {[%clk 0:00:06]}  Qh3+ {[%clk 0:00:30]} 32. Kf2 {[%clk 0:00:03]}  Qxd3 {[%clk 0:00:30]} 33. Re1 {[%clk 0:00:02]}  Qc2+ {[%clk 0:00:28]} 34. Re2 {[%clk 0:00:02]}  d3 {[%clk 0:00:27]} 35. Rxc2 {[%clk 0:00:00]}  dxc2 {[%clk 0:00:28]} 0-1


[Site "https://www.chess.com"]